[Event "FTX Road to Miami Prelims 2022"]
[Site "Online"]
[Date "2022.07.04"]
[Round "9.4"]
[White "Giri, Anish"]
[Black "Wei, Yi"]
[Result "1/2-1/2"]
[ECO "B90"]
[WhiteElo "2760"]
[BlackElo "2727"]
[Annotator "ChessBase"]
[PlyCount "61"]
[EventDate "2022.07.10"]
[EventType "tourn"]
[EventCountry "NET"]
[SourceTitle "playchess.com"]
[Source "ChessBase"]
[SourceQuality "1"]
[TimeControl "40/5400+30:1800+30"]

1. e4 {[%emt 1:15:40]} c5 {[%emt 1:15:40]} 2. Nf3 {[%emt 0:00:23]} d6 {[%emt 0:00:22]} 3. d4 {[%emt 0:00:20]} cxd4 {[%emt 0:00:22]} 4. Nxd4 {[%emt 0:00:20]} Nf6 {[%emt 0:00:20]} 5. Nc3 {[%emt 0:00:20]} a6 {[%emt 0:00:21]} 6. h3 {[%emt 0:00:21]} e5 {[%emt 0:00:21]} 7. Nf3 {[%emt 0:00:21]} Be7 {[%emt 0:00:50]} 8. g4 {[%emt 0:00:21]} h6 {[%emt 0:01:25]} 9. Rg1 {[%emt 0:00:22]} Nc6 {[%emt 0:01:44]} 10. g5 {[%emt 0:00:23]} hxg5 {[%emt 0:00:22]} 11. Nxg5 {[%emt 0:00:21]} Be6 {[%emt 0:00:47]} 12. Nxe6 {[%emt 0:00:30]} fxe6 {[%emt 0:00:23]} 13. Rxg7 {[%emt 0:00:31]} Qb6 {[%emt 0:01:02]} 14. a4 {[%emt 0:00:29]} Qb4 {[%emt 0:03:34]} 15. a5 {[%emt 0:03:07]} Nxe4 {[%emt 0:01:47]} 16. Ra4 {[%emt 0:00:52]} Nxc3 {[%emt 0:00:22]} 17. Rxb4 {[%emt 0:00:22]} Nxd1 {[%emt 0:00:21]} 18. Rxb7 {[%emt 0:00:21]} Nxb2 {[%emt 0:01:40]} 19. Bxb2 {[%emt 0:00:41]} Kf8 {[%emt 0:00:24]} 20. Rg3 {[%emt 0:03:54]} Nxa5 {[%emt 0:00:33]} 21. Rc7 {[%emt 0:02:14]} Rb8 {[%emt 0:01:58]} 22. Bxa6 {[%emt 0:03:36]} Bd8 {[%emt 0:00:41]} 23. Rc8 {[%emt 0:00:42]} Rxc8 {[%emt 0:00:23]} 24. Bxc8 {[%emt 0:00:19]} Nc4 {[%emt 0:00:57]} 25. Bc1 {[%emt 0:00:53]} Kf7 {[%emt 0:01:53]} 26. Ba6 {[%emt 0:00:21]} Nb6 {[%emt 0:00:54]} 27. Rf3+ {[%emt 0:00:54]} Bf6 {[%emt 0:00:30]} 28. Rb3 {[%emt 0:00:22]} Bd8 {[%emt 0:00:50]} 29. Rf3+ {[%emt 0:00:44]} Bf6 {[%emt 0:00:22]} 30. Rb3 {[%emt 0:00:21]} Bd8 {[%emt 0:00:20]} 31. Rf3+ {[%emt 0:00:26]} 1/2-1/2

[Event "FTX Road to Miami Prelims 2022"]
[Site "Online"]
[Date "2022.07.04"]
[Round "9.5"]
[White "Xiong, Jeffery"]
[Black "Shankland, Sam"]
[Result "1/2-1/2"]
[ECO "D45"]
[WhiteElo "2691"]
[BlackElo "2720"]
[Annotator "ChessBase"]
[PlyCount "122"]
[EventDate "2022.07.10"]
[EventType "tourn"]
[EventCountry "NET"]
[SourceTitle "playchess.com"]
[Source "ChessBase"]
[SourceQuality "1"]
[TimeControl "40/5400+30:1800+30"]

1. d4 {[%emt 1:15:40]} d5 {[%emt 1:15:40]} 2. c4 {[%emt 0:00:22]} e6 {[%emt 0:00:23]} 3. Nc3 {[%emt 0:00:22]} c6 {[%emt 0:00:21]} 4. e3 {[%emt 0:00:22]} Nf6 {[%emt 0:00:22]} 5. Nf3 {[%emt 0:00:21]} Nbd7 {[%emt 0:00:21]} 6. Qc2 {[%emt 0:00:22]} Bd6 {[%emt 0:00:22]} 7. b3 {[%emt 0:00:21]} O-O {[%emt 0:00:25]} 8. Be2 {[%emt 0:00:22]} b6 {[%emt 0:00:22]} 9. O-O {[%emt 0:00:21]} Bb7 {[%emt 0:00:22]} 10. Bb2 {[%emt 0:00:21]} Qe7 {[%emt 0:00:25]} 11. Rad1 {[%emt 0:00:22]} Rad8 {[%emt 0:00:23]} 12. Rfe1 {[%emt 0:00:23]} Rfe8 {[%emt 0:00:22]} 13. Bf1 {[%emt 0:00:51]} Nf8 {[%emt 0:00:54]} 14. g3 {[%emt 0:00:27]} Bb4 {[%emt 0:00:51]} 15. a3 {[%emt 0:00:23]} Bxc3 {[%emt 0:00:24]} 16. Qxc3 {[%emt 0:00:57]} dxc4 {[%emt 0:01:04]} 17. Qxc4 {[%emt 0:04:15]} c5 {[%emt 0:01:19]} 18. Ne5 {[%emt 0:00:22]} cxd4 {[%emt 0:01:11]} 19. Bxd4 {[%emt 0:00:24]} Rc8 {[%emt 0:01:45]} 20. Qa4 {[%emt 0:02:20]} Ng6 {[%emt 0:03:12]} 21. Qxa7 {[%emt 0:03:15]} Nxe5 {[%emt 0:01:47]} 22. Bxe5 {[%emt 0:00:20]} Ng4 {[%emt 0:00:20]} 23. Ba1 {[%emt 0:01:34]} Rc2 {[%emt 0:01:12]} 24. Re2 {[%emt 0:01:47]} Qc7 {[%emt 0:00:45]} 25. Qa4 {[%emt 0:00:34]} Qc6 {[%emt 0:01:07]} 26. Qxc6 {[%emt 0:00:22]} Rxc6 {[%emt 0:00:21]} 27. Red2 {[%emt 0:00:45]} Rcc8 {[%emt 0:00:32]} 28. h3 {[%emt 0:00:39]} Nf6 {[%emt 0:00:24]} 29. Bxf6 {[%emt 0:01:59]} gxf6 {[%emt 0:00:23]} 30. Bg2 {[%emt 0:00:20]} Bxg2 {[%emt 0:00:34]} 31. Kxg2 {[%emt 0:00:20]} b5 {[%emt 0:00:43]} 32. Rd4 {[%emt 0:00:31]} Rc5 {[%emt 0:00:30]} 33. Rg4+ {[%emt 0:01:33]} Kf8 {[%emt 0:00:23]} 34. Rd7 {[%emt 0:00:31]} Ra8 {[%emt 0:00:51]} 35. a4 {[%emt 0:00:26]} bxa4 {[%emt 0:00:22]} 36. Rxa4 {[%emt 0:00:20]} Rxa4 {[%emt 0:00:28]} 37. bxa4 {[%emt 0:00:20]} Rc2 {[%emt 0:00:23]} 38. g4 {[%emt 0:00:44]} Ra2 {[%emt 0:00:22]} 39. Ra7 {[%emt 0:00:29]} Kg7 {[%emt 0:00:33]} 40. Kg3 {[%emt 0:00:29]} Kg6 {[%emt 0:00:32]} 41. h4 {[%emt 0:30:39]} f5 {[%emt 0:31:00]} 42. gxf5+ {[%emt 0:00:30]} exf5 {[%emt 0:00:20]} 43. f3 {[%emt 0:01:02]} Re2 {[%emt 0:01:00]} 44. Kf4 {[%emt 0:00:23]} Rh2 {[%emt 0:00:22]} 45. Kg3 {[%emt 0:01:27]} Re2 {[%emt 0:00:23]} 46. Kf4 {[%emt 0:01:15]} Rh2 {[%emt 0:00:22]} 47. Ra6+ {[%emt 0:00:20]} f6 {[%emt 0:00:34]} 48. Kg3 {[%emt 0:00:21]} Re2 {[%emt 0:00:27]} 49. h5+ {[%emt 0:00:21]} Kxh5 {[%emt 0:01:29]} 50. Rxf6 {[%emt 0:00:22]} Rxe3 {[%emt 0:01:12]} 51. Kf4 {[%emt 0:00:55]} Ra3 {[%emt 0:00:59]} 52. Ra6 {[%emt 0:00:22]} Rb3 {[%emt 0:00:40]} 53. a5 {[%emt 0:00:39]} Ra3 {[%emt 0:01:40]} 54. Ra8 {[%emt 0:00:41]} Kg6 {[%emt 0:00:28]} 55. Rg8+ {[%emt 0:00:33]} Kf7 {[%emt 0:00:31]} 56. Ra8 {[%emt 0:00:22]} Kg6 {[%emt 0:00:24]} 57. Ra6+ {[%emt 0:01:25]} Kf7 {[%emt 0:01:34]} 58. Ra7+ {[%emt 0:00:33]} Kf6 {[%emt 0:00:29]} 59. Ra6+ {[%emt 0:00:29]} Kf7 {[%emt 0:00:25]} 60. Ra7+ {[%emt 0:00:35]} Kf6 {[%emt 0:00:22]} 61. Ra6+ {[%emt 0:00:21]} Kf7 {[%emt 0:00:21]} 1/2-1/2

[Event "FTX Road to Miami Prelims 2022"]
[Site "Online"]
[Date "2022.07.04"]
[Round "9.6"]
[White "Tari, Aryan"]
[Black "Wojtaszek, Radoslaw"]
[Result "1-0"]
[ECO "B50"]
[WhiteElo "2672"]
[BlackElo "2708"]
[Annotator "ChessBase"]
[PlyCount "121"]
[EventDate "2022.07.10"]
[EventType "tourn"]
[EventCountry "NET"]
[SourceTitle "playchess.com"]
[Source "ChessBase"]
[SourceQuality "1"]
[TimeControl "40/5400+30:1800+30"]

1. e4 {[%emt 1:15:40]} c5 {[%emt 1:15:40]} 2. Nf3 {[%emt 0:00:23]} d6 {[%emt 0:00:22]} 3. Nc3 {[%emt 0:00:21]} a6 {[%emt 0:00:29]} 4. a4 {[%emt 0:00:26]} Nf6 {[%emt 0:00:41]} 5. h3 {[%emt 0:00:24]} Nc6 {[%emt 0:00:33]} 6. d4 {[%emt 0:00:25]} cxd4 {[%emt 0:00:22]} 7. Nxd4 {[%emt 0:00:20]} e5 {[%emt 0:00:53]} 8. Nxc6 {[%emt 0:00:54]} bxc6 {[%emt 0:00:20]} 9. a5 {[%emt 0:00:35]} Be7 {[%emt 0:00:34]} 10. Bd3 {[%emt 0:00:37]} O-O {[%emt 0:00:22]} 11. O-O {[%emt 0:00:22]} d5 {[%emt 0:01:25]} 12. Qe2 {[%emt 0:02:38]} d4 {[%emt 0:01:24]} 13. Nb1 {[%emt 0:00:24]} Bb4 {[%emt 0:02:10]} 14. Bd2 {[%emt 0:01:39]} Qe7 {[%emt 0:00:22]} 15. Bxb4 {[%emt 0:03:14]} Qxb4 {[%emt 0:00:22]} 16. Nd2 {[%emt 0:00:21]} Be6 {[%emt 0:00:29]} 17. Nf3 {[%emt 0:01:29]} Nd7 {[%emt 0:03:25]} 18. c3 {[%emt 0:01:59]} dxc3 {[%emt 0:03:12]} 19. bxc3 {[%emt 0:00:20]} Qb7 {[%emt 0:00:21]} 20. Rfb1 {[%emt 0:01:05]} Qc7 {[%emt 0:00:47]} 21. Ng5 {[%emt 0:01:48]} Nc5 {[%emt 0:00:23]} 22. Rb6 {[%emt 0:00:35]} Bc8 {[%emt 0:00:51]} 23. Bc4 {[%emt 0:00:44]} h6 {[%emt 0:00:22]} 24. Nf3 {[%emt 0:00:52]} Rd8 {[%emt 0:01:32]} 25. Qe3 {[%emt 0:00:49]} Nd7 {[%emt 0:00:38]} 26. Rxc6 {[%emt 0:01:03]} Qxc6 {[%emt 0:00:54]} 27. Bd5 {[%emt 0:00:21]} Qc5 {[%emt 0:00:32]} 28. Bxa8 {[%emt 0:00:45]} Qxe3 {[%emt 0:00:26]} 29. fxe3 {[%emt 0:00:20]} Kf8 {[%emt 0:00:29]} 30. Bc6 {[%emt 0:00:51]} Ke7 {[%emt 0:00:51]} 31. Rb1 {[%emt 0:00:53]} f6 {[%emt 0:00:54]} 32. Nh4 {[%emt 0:00:56]} Nc5 {[%emt 0:00:38]} 33. Bd5 {[%emt 0:00:27]} Rd7 {[%emt 0:03:04]} 34. Nf5+ {[%emt 0:00:44]} Kd8 {[%emt 0:00:21]} 35. c4 {[%emt 0:00:25]} h5 {[%emt 0:00:26]} 36. Rb6 {[%emt 0:00:38]} Na4 {[%emt 0:01:02]} 37. Rb8 {[%emt 0:00:38]} Kc7 {[%emt 0:00:26]} 38. Ra8 {[%emt 0:00:21]} g6 {[%emt 0:00:29]} 39. Ng7 {[%emt 0:00:32]} Nc5 {[%emt 0:00:27]} 40. Ne8+ {[%emt 0:00:53]} Kd8 {[%emt 0:00:21]} 41. Nxf6 {[%emt 0:30:21]} Rc7 {[%emt 0:30:21]} 42. Kf2 {[%emt 0:00:52]} Ke7 {[%emt 0:00:33]} 43. Ng8+ {[%emt 0:00:21]} Kd6 {[%emt 0:00:25]} 44. Nh6 {[%emt 0:00:27]} Be6 {[%emt 0:00:48]} 45. g4 {[%emt 0:00:51]} h4 {[%emt 0:00:27]} 46. Kf3 {[%emt 0:01:00]} Rh7 {[%emt 0:00:26]} 47. g5 {[%emt 0:00:47]} Bxh3 {[%emt 0:00:52]} 48. Nf7+ {[%emt 0:00:22]} Kc7 {[%emt 0:00:34]} 49. Nxe5 {[%emt 0:00:24]} Bc8 {[%emt 0:00:35]} 50. Ra7+ {[%emt 0:00:34]} Bb7 {[%emt 0:00:22]} 51. Bxb7 {[%emt 0:00:21]} Nxb7 {[%emt 0:00:28]} 52. Kg2 {[%emt 0:00:29]} Re7 {[%emt 0:00:23]} 53. Nxg6 {[%emt 0:00:24]} Rxe4 {[%emt 0:00:22]} 54. Nf4 {[%emt 0:00:45]} Kb8 {[%emt 0:00:41]} 55. Rxa6 {[%emt 0:00:23]} Rxe3 {[%emt 0:00:21]} 56. g6 {[%emt 0:00:27]} Rg3+ {[%emt 0:00:22]} 57. Kh2 {[%emt 0:00:21]} Nc5 {[%emt 0:00:22]} 58. Rb6+ {[%emt 0:00:51]} Kc7 {[%emt 0:00:24]} 59. Nd5+ {[%emt 0:00:51]} Kd7 {[%emt 0:00:31]} 60. a6 {[%emt 0:00:23]} Nd3 {[%emt 0:00:58]} 61. Rb3 {[%emt 0:00:53]} 1-0

[Event "FTX Road to Miami Prelims 2022"]
[Site "Online"]
[Date "2022.07.04"]
[Round "9.7"]
[White "Sevian, Samuel"]
[Black "Rapport, Richard"]
[Result "1/2-1/2"]
[ECO "B60"]
[WhiteElo "2684"]
[BlackElo "2764"]
[Annotator "ChessBase"]
[PlyCount "73"]
[EventDate "2022.07.10"]
[EventType "tourn"]
[EventCountry "NET"]
[SourceTitle "playchess.com"]
[Source "ChessBase"]
[SourceQuality "1"]
[TimeControl "40/5400+30:1800+30"]

1. e4 {[%emt 1:15:40]} c5 {[%emt 1:15:40]} 2. Nf3 {[%emt 0:00:22]} d6 {[%emt 0:00:26]} 3. d4 {[%emt 0:00:21]} cxd4 {[%emt 0:00:20]} 4. Nxd4 {[%emt 0:00:21]} Nf6 {[%emt 0:00:21]} 5. Nc3 {[%emt 0:00:21]} Nc6 {[%emt 0:00:21]} 6. Bg5 {[%emt 0:00:22]} Bd7 {[%emt 0:00:21]} 7. Nxc6 {[%emt 0:00:38]} bxc6 {[%emt 0:00:27]} 8. Bc4 {[%emt 0:00:29]} Qa5 {[%emt 0:00:47]} 9. Bd2 {[%emt 0:01:48]} Qc7 {[%emt 0:00:54]} 10. Qe2 {[%emt 0:00:54]} g6 {[%emt 0:01:58]} 11. f4 {[%emt 0:03:50]} Bg4 {[%emt 0:00:33]} 12. Qf2 {[%emt 0:01:18]} Bg7 {[%emt 0:00:44]} 13. h3 {[%emt 0:00:33]} Bc8 {[%emt 0:00:53]} 14. Bb3 {[%emt 0:01:32]} a5 {[%emt 0:00:39]} 15. O-O {[%emt 0:01:33]} a4 {[%emt 0:00:26]} 16. Bc4 {[%emt 0:00:25]} O-O {[%emt 0:00:28]} 17. Rae1 {[%emt 0:00:54]} Nd7 {[%emt 0:00:36]} 18. b3 {[%emt 0:00:44]} axb3 {[%emt 0:00:40]} 19. axb3 {[%emt 0:00:26]} Ba6 {[%emt 0:01:02]} 20. Bxa6 {[%emt 0:00:22]} Rxa6 {[%emt 0:00:20]} 21. Na4 {[%emt 0:00:21]} c5 {[%emt 0:01:07]} 22. Bc3 {[%emt 0:00:47]} Bd4 {[%emt 0:01:27]} 23. Bxd4 {[%emt 0:00:22]} cxd4 {[%emt 0:00:20]} 24. Qxd4 {[%emt 0:01:47]} Qxc2 {[%emt 0:00:24]} 25. Nc3 {[%emt 0:02:05]} Qxb3 {[%emt 0:03:35]} 26. Nd5 {[%emt 0:00:44]} e5 {[%emt 0:00:26]} 27. fxe5 {[%emt 0:00:22]} Nxe5 {[%emt 0:00:22]} 28. Qf2 {[%emt 0:00:21]} h5 {[%emt 0:01:14]} 29. Qf4 {[%emt 0:00:38]} Ra5 {[%emt 0:01:35]} 30. Nf6+ {[%emt 0:02:46]} Kg7 {[%emt 0:00:23]} 31. Nxh5+ {[%emt 0:00:34]} gxh5 {[%emt 0:00:24]} 32. Qg5+ {[%emt 0:00:22]} Kh7 {[%emt 0:00:24]} 33. Qxh5+ {[%emt 0:00:22]} Kg7 {[%emt 0:00:21]} 34. Qg5+ {[%emt 0:00:20]} Kh7 {[%emt 0:00:22]} 35. Qh5+ {[%emt 0:01:03]} Kg7 {[%emt 0:00:22]} 36. Qg5+ {[%emt 0:00:20]} Kh7 {[%emt 0:00:20]} 37. Qh5+ {[%emt 0:00:21]} 1/2-1/2

[Event "FTX Road to Miami Prelims 2022"]
[Site "Online"]
[Date "2022.07.04"]
[Round "10.2"]
[White "Rapport, Richard"]
[Black "Aronian, Levon"]
[Result "1/2-1/2"]
[ECO "B23"]
[WhiteElo "2764"]
[BlackElo "2775"]
[Annotator "ChessBase"]
[PlyCount "126"]
[EventDate "2022.07.10"]
[EventType "tourn"]
[EventCountry "NET"]
[SourceTitle "playchess.com"]
[Source "ChessBase"]
[SourceQuality "1"]
[TimeControl "40/5400+30:1800+30"]

1. e4 {[%emt 1:15:40]} c5 {[%emt 1:15:40]} 2. Nc3 {[%emt 0:00:22]} a6 {[%emt 0:00:23]} 3. g4 {[%emt 0:00:36]} b5 {[%emt 0:00:30]} 4. Bg2 {[%emt 0:00:28]} Bb7 {[%emt 0:00:21]} 5. d3 {[%emt 0:00:25]} b4 {[%emt 0:00:31]} 6. Nce2 {[%emt 0:00:32]} d5 {[%emt 0:00:28]} 7. Ng3 {[%emt 0:00:27]} e6 {[%emt 0:00:31]} 8. Nh3 {[%emt 0:00:28]} Bd6 {[%emt 0:01:38]} 9. O-O {[%emt 0:00:28]} Ne7 {[%emt 0:00:22]} 10. f4 {[%emt 0:00:30]} O-O {[%emt 0:00:25]} 11. f5 {[%emt 0:00:35]} Nd7 {[%emt 0:02:09]} 12. g5 {[%emt 0:00:32]} Bxg3 {[%emt 0:00:58]} 13. hxg3 {[%emt 0:00:24]} dxe4 {[%emt 0:00:20]} 14. f6 {[%emt 0:00:51]} Ng6 {[%emt 0:01:20]} 15. fxg7 {[%emt 0:00:52]} Kxg7 {[%emt 0:00:22]} 16. Nf2 {[%emt 0:01:59]} Qc7 {[%emt 0:00:46]} 17. Nxe4 {[%emt 0:01:32]} Bxe4 {[%emt 0:01:06]} 18. Bxe4 {[%emt 0:01:05]} Qxg3+ {[%emt 0:00:24]} 19. Kh1 {[%emt 0:00:21]} Qh3+ {[%emt 0:02:06]} 20. Kg1 {[%emt 0:00:22]} Rad8 {[%emt 0:00:27]} 21. Bg2 {[%emt 0:01:18]} Qh4 {[%emt 0:00:51]} 22. Rf3 {[%emt 0:00:26]} f5 {[%emt 0:01:07]} 23. gxf6+ {[%emt 0:02:52]} Rxf6 {[%emt 0:00:22]} 24. Rh3 {[%emt 0:00:22]} Qf2+ {[%emt 0:00:22]} 25. Kh1 {[%emt 0:00:21]} Nf4 {[%emt 0:00:20]} 26. Bxf4 {[%emt 0:01:12]} Qxf4 {[%emt 0:00:25]} 27. Qh5 {[%emt 0:00:24]} Rh6 {[%emt 0:02:08]} 28. Qxh6+ {[%emt 0:00:23]} Qxh6 {[%emt 0:00:20]} 29. Rxh6 {[%emt 0:00:21]} Kxh6 {[%emt 0:00:20]} 30. Re1 {[%emt 0:00:22]} e5 {[%emt 0:01:35]} 31. Bh3 {[%emt 0:00:38]} Kg7 {[%emt 0:00:48]} 32. Bxd7 {[%emt 0:00:26]} Rxd7 {[%emt 0:00:22]} 33. Rxe5 {[%emt 0:00:21]} c4 {[%emt 0:00:43]} 34. dxc4 {[%emt 0:00:39]} Rd1+ {[%emt 0:00:21]} 35. Kg2 {[%emt 0:00:21]} Rd2+ {[%emt 0:00:20]} 36. Kf3 {[%emt 0:00:25]} Rxc2 {[%emt 0:00:20]} 37. Re7+ {[%emt 0:01:07]} Kf6 {[%emt 0:00:33]} 38. Rxh7 {[%emt 0:00:26]} Rxb2 {[%emt 0:00:21]} 39. Rh6+ {[%emt 0:00:28]} Ke5 {[%emt 0:00:21]} 40. Rxa6 {[%emt 0:00:21]} Kd4 {[%emt 0:00:21]} 41. Ra4 {[%emt 0:30:29]} Kxc4 {[%emt 0:30:21]} 42. Ra8 {[%emt 0:01:11]} Rh2 {[%emt 0:00:25]} 43. Ke3 {[%emt 0:01:02]} Kc3 {[%emt 0:00:31]} 44. Rc8+ {[%emt 0:00:24]} Kb2 {[%emt 0:00:20]} 45. Ra8 {[%emt 0:00:23]} Rh3+ {[%emt 0:00:55]} 46. Kd4 {[%emt 0:00:50]} Ra3 {[%emt 0:00:23]} 47. Rb8 {[%emt 0:00:22]} Ra4 {[%emt 0:00:25]} 48. Kd3 {[%emt 0:00:47]} Kxa2 {[%emt 0:00:41]} 49. Kc2 {[%emt 0:00:22]} Ka3 {[%emt 0:00:21]} 50. Kb1 {[%emt 0:00:29]} Ra6 {[%emt 0:00:25]} 51. Rh8 {[%emt 0:00:23]} Rc6 {[%emt 0:00:25]} 52. Rh2 {[%emt 0:00:28]} Rc3 {[%emt 0:00:24]} 53. Ra2+ {[%emt 0:00:27]} Kb3 {[%emt 0:00:21]} 54. Rb2+ {[%emt 0:00:21]} Kc4 {[%emt 0:00:22]} 55. Rh2 {[%emt 0:00:24]} Kb3 {[%emt 0:00:22]} 56. Rb2+ {[%emt 0:00:22]} Ka4 {[%emt 0:00:20]} 57. Ra2+ {[%emt 0:00:25]} Ra3 {[%emt 0:00:21]} 58. Kb2 {[%emt 0:00:33]} Rxa2+ {[%emt 0:00:21]} 59. Kxa2 {[%emt 0:00:20]} b3+ {[%emt 0:00:21]} 60. Kb2 {[%emt 0:00:22]} Kb4 {[%emt 0:00:20]} 61. Kb1 {[%emt 0:00:21]} Kc3 {[%emt 0:00:20]} 62. Kc1 {[%emt 0:00:20]} b2+ {[%emt 0:00:20]} 63. Kb1 {[%emt 0:00:21]} Kb3 {[%emt 0:00:19]} 1/2-1/2

[Event "FTX Road to Miami Prelims 2022"]
[Site "Online"]
[Date "2022.07.04"]
[Round "10.3"]
[White "Wojtaszek, Radoslaw"]
[Black "Sevian, Samuel"]
[Result "1/2-1/2"]
[ECO "D02"]
[WhiteElo "2708"]
[BlackElo "2684"]
[Annotator "ChessBase"]
[PlyCount "93"]
[EventDate "2022.07.10"]
[EventType "tourn"]
[EventCountry "NET"]
[SourceTitle "playchess.com"]
[Source "ChessBase"]
[SourceQuality "1"]
[TimeControl "40/5400+30:1800+30"]

1. Nf3 {[%emt 1:15:40]} d5 {[%emt 1:15:40]} 2. g3 {[%emt 0:00:21]} Nf6 {[%emt 0:00:25]} 3. Bg2 {[%emt 0:00:21]} c5 {[%emt 0:00:22]} 4. O-O {[%emt 0:00:24]} Nc6 {[%emt 0:00:30]} 5. d4 {[%emt 0:00:21]} e6 {[%emt 0:00:21]} 6. b3 {[%emt 0:00:28]} cxd4 {[%emt 0:00:29]} 7. Nxd4 {[%emt 0:00:22]} Bc5 {[%emt 0:00:21]} 8. Nxc6 {[%emt 0:00:49]} bxc6 {[%emt 0:00:22]} 9. c4 {[%emt 0:00:25]} O-O {[%emt 0:01:19]} 10. Nc3 {[%emt 0:00:22]} Qe7 {[%emt 0:00:55]} 11. Qc2 {[%emt 0:00:36]} Bb7 {[%emt 0:00:42]} 12. Bg5 {[%emt 0:01:08]} Rac8 {[%emt 0:01:03]} 13. Na4 {[%emt 0:01:24]} Bd6 {[%emt 0:00:44]} 14. Rac1 {[%emt 0:00:47]} h6 {[%emt 0:03:08]} 15. Be3 {[%emt 0:00:55]} Ba6 {[%emt 0:00:22]} 16. Rfe1 {[%emt 0:06:28]} Rfd8 {[%emt 0:02:04]} 17. Bd2 {[%emt 0:02:24]} d4 {[%emt 0:04:15]} 18. e4 {[%emt 0:00:24]} e5 {[%emt 0:00:36]} 19. c5 {[%emt 0:00:26]} Bc7 {[%emt 0:00:30]} 20. Nb2 {[%emt 0:00:28]} Nd7 {[%emt 0:01:27]} 21. Bf1 {[%emt 0:00:52]} Bxf1 {[%emt 0:01:36]} 22. Rxf1 {[%emt 0:00:20]} a5 {[%emt 0:00:33]} 23. Nd3 {[%emt 0:00:37]} Rb8 {[%emt 0:00:31]} 24. Qc4 {[%emt 0:00:39]} Nf8 {[%emt 0:00:37]} 25. a3 {[%emt 0:01:28]} h5 {[%emt 0:00:35]} 26. h4 {[%emt 0:00:26]} Ne6 {[%emt 0:00:29]} 27. b4 {[%emt 0:00:48]} axb4 {[%emt 0:00:34]} 28. axb4 {[%emt 0:00:22]} Qf6 {[%emt 0:00:22]} 29. Kg2 {[%emt 0:01:44]} Qg6 {[%emt 0:00:31]} 30. Rce1 {[%emt 0:01:10]} Ra8 {[%emt 0:00:26]} 31. Kh2 {[%emt 0:01:13]} Ra3 {[%emt 0:00:27]} 32. f3 {[%emt 0:00:44]} Rda8 {[%emt 0:00:25]} 33. Re2 {[%emt 0:00:29]} Qf6 {[%emt 0:00:57]} 34. Kg2 {[%emt 0:00:24]} Qg6 {[%emt 0:01:17]} 35. Kh2 {[%emt 0:00:22]} Qf6 {[%emt 0:00:21]} 36. Kg2 {[%emt 0:00:24]} Qd8 {[%emt 0:00:52]} 37. Rb1 {[%emt 0:00:36]} R8a4 {[%emt 0:00:35]} 38. Rb3 {[%emt 0:00:42]} Ra1 {[%emt 0:00:36]} 39. Re1 {[%emt 0:00:24]} R1a2 {[%emt 0:00:29]} 40. Rb2 {[%emt 0:00:23]} R2a3 {[%emt 0:00:25]} 41. Rb3 {[%emt 0:30:29]} Ra2 {[%emt 0:30:22]} 42. Rb2 {[%emt 0:00:24]} Qa8 {[%emt 0:00:36]} 43. Reb1 {[%emt 0:00:39]} R2a3 {[%emt 0:00:24]} 44. Rb3 {[%emt 0:00:39]} Ra2 {[%emt 0:00:21]} 45. R3b2 {[%emt 0:00:31]} R2a3 {[%emt 0:00:21]} 46. Rb3 {[%emt 0:00:43]} Ra2 {[%emt 0:00:31]} 47. R3b2 {[%emt 0:00:34]} 1/2-1/2

[Event "FTX Road to Miami Prelims 2022"]
[Site "Online"]
[Date "2022.07.04"]
[Round "10.4"]
[White "Shankland, Sam"]
[Black "Tari, Aryan"]
[Result "1-0"]
[ECO "A21"]
[WhiteElo "2720"]
[BlackElo "2672"]
[Annotator "ChessBase"]
[PlyCount "55"]
[EventDate "2022.07.10"]
[EventType "tourn"]
[EventCountry "NET"]
[SourceTitle "playchess.com"]
[Source "ChessBase"]
[SourceQuality "1"]
[TimeControl "40/5400+30:1800+30"]

1. c4 {[%emt 1:15:40]} e5 {[%emt 1:15:40]} 2. g3 {[%emt 0:00:22]} Be7 {[%emt 0:00:31]} 3. Nc3 {[%emt 0:00:26]} f5 {[%emt 0:00:29]} 4. d4 {[%emt 0:01:22]} d6 {[%emt 0:00:23]} 5. Bh3 {[%emt 0:00:45]} e4 {[%emt 0:04:00]} 6. f3 {[%emt 0:00:53]} Nf6 {[%emt 0:00:37]} 7. Bg2 {[%emt 0:00:38]} exf3 {[%emt 0:03:25]} 8. Nxf3 {[%emt 0:00:20]} O-O {[%emt 0:01:31]} 9. O-O {[%emt 0:00:23]} c6 {[%emt 0:00:49]} 10. d5 {[%emt 0:01:27]} Ng4 {[%emt 0:01:22]} 11. Nd4 {[%emt 0:01:13]} Qb6 {[%emt 0:01:17]} 12. h3 {[%emt 0:01:12]} Bf6 {[%emt 0:01:05]} 13. e3 {[%emt 0:00:23]} Ne5 {[%emt 0:00:33]} 14. b3 {[%emt 0:00:51]} Na6 {[%emt 0:00:45]} 15. Bd2 {[%emt 0:00:56]} g6 {[%emt 0:01:49]} 16. dxc6 {[%emt 0:00:59]} bxc6 {[%emt 0:00:21]} 17. Nd5 {[%emt 0:01:34]} Qd8 {[%emt 0:03:02]} 18. Nxc6 {[%emt 0:01:00]} Nxc6 {[%emt 0:00:20]} 19. Nxf6+ {[%emt 0:00:21]} Qxf6 {[%emt 0:00:21]} 20. Bxc6 {[%emt 0:00:21]} Rb8 {[%emt 0:00:20]} 21. Rc1 {[%emt 0:00:38]} Nb4 {[%emt 0:00:50]} 22. Bg2 {[%emt 0:01:06]} Nxa2 {[%emt 0:00:43]} 23. Rc2 {[%emt 0:00:33]} Nb4 {[%emt 0:00:21]} 24. Bc3 {[%emt 0:00:40]} Qe7 {[%emt 0:00:49]} 25. Qd4 {[%emt 0:00:46]} Qe5 {[%emt 0:00:44]} 26. Qxa7 {[%emt 0:00:49]} Rb7 {[%emt 0:00:31]} 27. Bxb7 {[%emt 0:00:43]} Qxg3+ {[%emt 0:00:33]} 28. Rg2 {[%emt 0:00:24]} 1-0